[Event "Qatar Masters-B 2024"]
[Site "Doha"]
[Date "2024.12.06"]
[Round "4.8"]
[White "Boulrens, Ala Eddine"]
[Black "Khulan, Enkhsaikhan"]
[Result "1-0"]
[ECO "D02"]
[WhiteElo "2144"]
[BlackElo "2044"]
[Annotator "NA RC"]
[PlyCount "109"]
[EventDate "2024.11.24"]
[EventType "swiss"]
[EventCountry "QAT"]
[SourceTitle "playchess.com"]
[Source "ChessBase"]
[SourceQuality "1"]
[TimeControl "40/5400+30:1800+30"]

1. d4 {[%emt 0:00:19]} d5 {[%emt 0:00:25]} 2. Bf4 {[%emt 0:00:27]} Nf6 {[%emt 0:00:56]} 3. e3 {[%emt 0:00:29]} e6 {[%emt 0:01:39]} 4. Nf3 {[%emt 0:00:23]} c5 {[%emt 0:00:18]} 5. Nc3 {[%emt 0:01:39]} a6 {[%emt 0:01:22]} 6. dxc5 {[%emt 0:01:06]} Bxc5 {[%emt 0:00:31]} 7. Bd3 {[%emt 0:00:16]} Nc6 {[%emt 0:01:19]} 8. O-O {[%emt 0:00:46]} O-O {[%emt 0:00:39]} 9. e4 {[%emt 0:05:08]} dxe4 {[%emt 0:06:29]} 10. Nxe4 {[%emt 0:04:53]} Be7 {[%emt 0:07:40]} 11. Qe2 {[%emt 0:07:14]} Nd5 {[%emt 0:04:02]} 12. Bd2 {[%emt 0:11:12]} Ncb4 {[%emt 0:03:55]} 13. Rfd1 {[%emt 0:04:43]} Nxd3 {[%emt 0:09:49]} 14. Qxd3 {[%emt 0:00:12]} h6 {[%emt 0:00:55]} 15. c4 {[%emt 0:09:46]} Nf6 {[%emt 0:02:30]} 16. Qe2 {[%emt 0:02:44]} Qc7 {[%emt 0:04:27]} 17. Bc3 {[%emt 0:01:35]} Nd7 {[%emt 0:06:10]} 18. Rd2 {[%emt 0:07:37]} e5 {[%emt 0:03:38]} 19. Rad1 {[%emt 0:02:48]} f6 {[%emt 0:06:27]} 20. Nh4 {[%emt 0:06:01]} Nc5 {[%emt 0:04:43]} 21. Ng6 {[%emt 0:03:47]} Nxe4 {[%emt 0:00:47]} 22. Qxe4 {[%emt 0:00:47]} Re8 {[%emt 0:01:38]} 23. Qd5+ {[%emt 0:07:05]} Kh7 {[%emt 0:01:40]} 24. Nh4 {[%emt 0:08:28]} Bf8 {[%emt 0:06:50]} 25. Ba5 {[%emt 0:03:29]} Qc6 {[%emt 0:02:42]} 26. Qxc6 {[%emt 0:05:34]} bxc6 {[%emt 0:00:06]} 27. Nf3 {[%emt 0:00:20]} Bg4 {[%emt 0:03:04]} 28. Re1 {[%emt 0:01:25]} Rab8 {[%emt 0:01:39]} 29. b3 {[%emt 0:00:47]} Bc5 {[%emt 0:01:16]} 30. Kf1 {[%emt 0:00:56]} Kg6 {[%emt 0:02:16]} 31. Ng1 {[%emt 0:00:47]} Bd4 {[%emt 0:01:04]} 32. h3 {[%emt 0:01:09]} Be6 {[%emt 0:01:41]} 33. Ne2 {[%emt 0:00:05]} c5 {[%emt 0:00:58]} 34. f4 {[%emt 0:00:54]} Bf7 {[%emt 0:06:08]} 35. g4 {[%emt 0:01:15]} h5 {[%emt 0:01:20]} 36. Nxd4 {[%emt 0:00:44]} exd4 {[%emt 0:00:58]} 37. Rde2 {[%emt 0:00:06]} hxg4 {[%emt 0:01:39]} 38. hxg4 {[%emt 0:00:12]} Rxe2 {[%emt 0:02:15]} 39. Rxe2 {[%emt 0:00:03]} Rb7 {[%emt 0:01:46]} 40. Kf2 {[%emt 0:00:26]} Kh7 {[%emt 0:00:58]} 41. Kg3 {[%emt 0:30:52]} Bg6 {[%emt 0:30:32]} 42. f5 {[%emt 0:00:19]} Bf7 {[%emt 0:00:14]} 43. Kf4 {[%emt 0:00:18]} Kg8 {[%emt 0:01:11]} 44. Re1 {[%emt 0:00:35]} Kf8 {[%emt 0:00:48]} 45. Re4 {[%emt 0:00:47]} Bg8 {[%emt 0:01:01]} 46. Bd8 {[%emt 0:01:27]} Bf7 {[%emt 0:00:18]} 47. g5 {[%emt 0:00:31]} fxg5+ {[%emt 0:00:19]} 48. Kxg5 {[%emt 0:00:20]} Bg8 {[%emt 0:00:22]} 49. Re5 {[%emt 0:00:29]} Rd7 {[%emt 0:00:59]} 50. Ba5 {[%emt 0:00:53]} d3 {[%emt 0:00:13]} 51. Bd2 {[%emt 0:00:08]} Re7 {[%emt 0:00:41]} 52. Rxc5 {[%emt 0:00:14]} Re2 {[%emt 0:00:28]} 53. Bb4 {[%emt 0:00:07]} Ke8 {[%emt 0:00:39]} 54. Rc8+ {[%emt 0:00:29]} Kf7 {[%emt 0:00:24]} 55. Rf8# {[%emt 0:00:05]} 1-0

[Event "Qatar Masters-B 2024"]
[Site "Doha"]
[Date "2024.12.06"]
[Round "4.9"]
[White "Khalifa Essa, Albalooshi"]
[Black "Wazwaz, Amjad"]
[Result "1-0"]
[ECO "B07"]
[WhiteElo "2050"]
[BlackElo "1956"]
[Annotator "NA RC"]
[PlyCount "73"]
[EventDate "2024.11.24"]
[EventType "swiss"]
[EventCountry "QAT"]
[SourceTitle "playchess.com"]
[Source "ChessBase"]
[SourceQuality "1"]
[TimeControl "40/5400+30:1800+30"]

1. d4 g6 2. e4 Bg7 3. Nc3 d6 4. Be3 Nf6 5. Qd2 Ng4 6. Bg5 h6 7. Bh4 Nc6 8. Nf3 a6 9. h3 Nf6 10. O-O-O b5 11. e5 Nh7 12. Qe3 d5 13. g4 Nf8 14. Nd2 Na5 15. Bg2 c6 16. f4 Qb6 17. Rdf1 Ne6 18. Ne2 Nc4 19. Nxc4 bxc4 20. f5 Nd8 21. f6 Bf8 22. fxe7 Bxe7 23. Bxe7 Kxe7 24. Qa3+ Ke8 25. Rf6 Be6 26. c3 Ra7 27. Nf4 Re7 28. Rf1 Rg8 29. Bf3 Qb8 30. Bd1 Bd7 31. Ba4 g5 32. Nh5 Ne6 33. Rxh6 Kd8 34. Nf6 Rf8 35. Nxd7 Kxd7 36. Bxc6+ Kd8 37. Rxe6 1-0

[Event "Qatar Masters-B 2024"]
[Site "Doha"]
[Date "2024.12.06"]
[Round "4.10"]
[White "Gyana Sai Santhosh M"]
[Black "Mendoza, Ryan"]
[Result "0-1"]
[ECO "B08"]
[WhiteElo "2090"]
[BlackElo "1941"]
[Annotator "NA RC"]
[PlyCount "76"]
[EventDate "2024.11.24"]
[EventType "swiss"]
[EventCountry "QAT"]
[SourceTitle "playchess.com"]
[Source "ChessBase"]
[SourceQuality "1"]
[TimeControl "40/5400+30:1800+30"]

1. e4 d6 2. d4 Nf6 3. Nc3 g6 4. Nf3 Bg7 5. Be2 O-O 6. O-O Bg4 7. h3 Bxf3 8. Bxf3 e5 9. d5 Nbd7 10. h4 Ne8 11. h5 f5 12. hxg6 hxg6 13. g3 a5 14. Kg2 Nc5 15. Rh1 Qf6 16. Be3 b6 17. Qd2 Qf7 18. exf5 Qxf5 19. Qe2 Nf6 20. g4 Qd7 21. g5 Nh7 22. Bg4 Qe7 23. Bxc5 bxc5 24. Be6+ Rf7 25. Bxf7+ Qxf7 26. Qg4 Rf8 27. Ne4 Qxd5 28. c4 Qb7 29. Rh4 Rf5 30. Kg3 Qxb2 31. Rf1 Qxa2 32. Qd1 Nxg5 33. Qd5+ Nf7 34. Qa8+ Bf8 35. Rg4 Qe2 36. Rxg6+ Kh7 37. Qxf8 Qd3+ 38. Kh2 Rh5+ 0-1